bitfinex-derivatives/quotes_BTCF0:USTF0_20250422
["timestamp","ask_amount","ask_price","bid_price","bid_amount"]
[1745332024316,0.366,90556.0,90551.0,0.05908]
[1745332024517,0.365,90556.0,90551.0,0.05908]
[1745332024713,0.001,90555.0,90551.0,0.05908]
[1745332024920,0.00292521,90555.0,90551.0,0.05908]
[1745332025225,0.3796,90554.0,90551.0,0.05908]
[1745332025621,0.001,90553.0,90551.0,0.05908]
[1745332026325,0.5708,90552.0,90551.0,0.05908]
[1745332026519,0.5698,90552.0,90551.0,0.05908]
[1745332026720,0.5708,90552.0,90530.0,0.16991169]
[1745332026919,0.001,90549.0,90537.0,0.05908]
[1745332027125,0.001,90538.0,90537.0,0.05908]
[1745332027727,0.001,90538.0,90537.0,0.03250075]
[1745332027923,0.001,90538.0,90537.0,0.05908]
[1745332028130,0.001,90538.0,90537.0,0.01920974]
[1745332028830,0.002,90538.0,90535.0,0.05908]
[1745332029030,0.5844,90537.0,90530.0,0.16143313]
[1745332029329,0.5844,90537.0,90531.0,0.05908]
[1745332029628,0.001,90536.0,90531.0,0.05908]
[1745332030126,0.3907,90535.0,90531.0,0.05908]
[1745332030326,0.3897,90535.0,90531.0,0.05908]
[1745332030935,0.3897,90535.0,90532.0,0.3666]
[1745332031326,0.3907,90535.0,90532.0,0.3666]
[1745332031526,0.3907,90535.0,90532.0,0.3596]
[1745332031934,0.3907,90535.0,90533.0,0.05896]
[1745332032134,0.3917,90535.0,90533.0,0.04511707]
[1745332032634,0.001,90534.0,90533.0,0.04511707]
[1745332033131,0.3979,90534.0,90533.0,0.04511707]
[1745332033335,0.3979,90534.0,90527.0,0.34142216]
[1745332033533,0.001,90533.0,90528.0,0.05896]
[1745332033829,0.00292565,90533.0,90528.0,0.05896]
[1745332034027,0.3813,90532.0,90528.0,0.05896]
[1745332034226,0.3813,90532.0,90528.0,0.01908815]
[1745332035127,0.3813,90532.0,90529.0,0.03127122]
[1745332035525,0.1977,90532.0,90530.0,0.1816]
[1745332035722,0.1977,90532.0,90530.0,0.34342093]
[1745332035928,0.1977,90532.0,90531.0,0.11046]
[1745332036131,0.00292565,90533.0,90531.0,0.11046]
[1745332036431,0.1991,90538.0,90532.0,0.29786]
[1745332036639,0.1991,90538.0,90533.0,0.1929]
[1745332037325,0.1867,90537.0,90533.0,0.1919]
[1745332038126,0.187,90536.0,90533.0,0.1919]
[1745332038533,0.1867,90535.0,90533.0,0.1919]
[1745332038738,0.001,90534.0,90529.0,0.03127122]
[1745332038928,0.376,90534.0,90529.0,0.03127122]
[1745332039141,0.1877,90533.0,90529.0,0.02427122]
[1745332039434,0.1877,90533.0,90530.0,0.05896]
[1745332039638,0.188,90532.0,90530.0,0.05896]
[1745332040031,0.1944,90531.0,90530.0,0.05896]
[1745332040234,0.1954,90531.0,90530.0,0.01908843]
[1745332041132,0.1964,90531.0,90530.0,0.02208843]
[1745332042036,0.1964,90531.0,90530.0,0.05896]
[1745332042237,0.1964,90531.0,90530.0,0.04511571]
[1745332043937,0.1964,90531.0,90530.0,0.01853481]
[1745332044138,0.1964,90531.0,90530.0,0.05896]
[1745332044437,0.5572,90531.0,90529.0,0.05896]
[1745332044629,0.2002,90530.0,90529.0,0.05896]
[1745332045036,0.3825,90530.0,90529.0,0.05896]
[1745332046235,0.3825,90530.0,90529.0,0.01908574]
[1745332046437,0.3835,90530.0,90529.0,0.01908574]
[1745332047042,0.3835,90530.0,90529.0,0.01208574]
[1745332047938,0.3835,90530.0,90528.0,0.05896]
[1745332048132,0.001,90529.0,90528.0,0.05896]
[1745332048333,0.001,90529.0,90528.0,0.03126959]
[1745332048535,0.3692,90529.0,90528.0,0.03126959]
[1745332048730,0.36727429,90529.0,90528.0,0.03126959]
[1745332049241,0.36827429,90529.0,90510.0,0.3608]
[1745332049439,0.36827429,90529.0,90523.0,0.05896]
[1745332049940,0.00192585,90528.0,90510.0,0.53071169]
[1745332050130,0.3608,90520.0,90516.0,0.05896]
[1745332050331,0.3827,90519.0,90515.0,0.05896]
[1745332051839,0.1808,90518.0,90515.0,0.03734358]
[1745332052341,0.1919,90517.0,90510.0,0.03957302]
[1745332052741,0.1988,90516.0,90510.0,0.03957302]
[1745332053232,0.1992,90515.0,90510.0,0.03957302]
[1745332053437,0.19727447,90515.0,90510.0,0.03957302]
[1745332053635,0.1988,90514.0,90510.0,0.03957302]
[1745332054344,0.1988,90514.0,90504.0,0.16991169]
[1745332054345,0.1988,90514.0,90511.0,0.05896]
[1745332054846,0.1988,90514.0,90511.0,0.05196]
[1745332055142,0.00192605,90513.0,90511.0,0.05196]
[1745332055342,0.00192605,90513.0,90512.0,0.1508]
[1745332055937,0.00192605,90513.0,90512.0,0.12310358]
[1745332056640,0.19542605,90513.0,90512.0,0.12310358]
[1745332056840,0.19642605,90513.0,90511.0,0.05196]
[1745332057439,0.1945,90513.0,90511.0,0.05196]
[1745332057840,0.19642604,90513.0,90504.0,0.16991169]
[1745332058140,0.19642604,90513.0,90505.0,0.01908151]
[1745332058841,0.19542604,90513.0,90505.0,0.01908151]
[1745332059043,0.19642604,90513.0,90511.0,0.003]
[1745332059247,0.5409,90512.0,90503.0,0.05896]
[1745332059645,0.1886,90511.0,90503.0,0.05896]
[1745332059949,0.3608,90504.0,90498.0,0.05896]
[1745332060139,0.3608,90502.0,90497.0,0.05896]
[1745332060344,0.1886,90501.0,90497.0,0.05896]
[1745332060747,0.1886,90501.0,90497.0,0.03956958]
[1745332060949,0.00192639,90500.0,90497.0,0.03956958]
[1745332061456,0.1886,90499.0,90497.0,0.03956958]
[1745332061743,0.1823,90498.0,90497.0,0.03956958]
[1745332062241,0.5431,90498.0,90497.0,0.03956958]
[1745332062439,0.1823,90498.0,90494.0,0.05884]
[1745332062645,0.1904,90497.0,90494.0,0.05884]
[1745332063743,0.00192642,90496.0,90494.0,0.05884]
[1745332063940,0.01029722,90496.0,90494.0,0.05884]
[1745332064138,0.1904,90495.0,90494.0,0.05884]
[1745332064540,0.550904,90495.0,90459.0,0.3608]
[1745332064740,0.5512,90495.0,90477.0,0.05884]
[1745332065045,0.3608,90483.0,90470.0,0.16991169]
[1745332065244,0.1921,90482.0,90473.0,0.05884]
[1745332065440,0.3608,90475.0,90473.0,0.05884]
[1745332065748,0.1921,90474.0,90460.0,0.16991169]
[1745332065947,0.1921,90474.0,90471.0,0.05884]
[1745332066142,0.1921,90474.0,90460.0,0.16991169]
[1745332066447,0.1921,90474.0,90472.0,0.64936]
[1745332066645,0.19017435,90474.0,90472.0,0.64936]
[1745332067244,0.19217435,90474.0,90472.0,0.65136]
[1745332067449,0.1799,90473.0,90472.0,0.65136]
[1745332067748,0.1799,90473.0,90472.0,0.62476389]
[1745332067950,0.1799,90473.0,90472.0,0.73529589]
[1745332068138,0.18182683,90473.0,90472.0,0.73029589]
[1745332068646,0.3608,90486.0,90472.0,0.68320272]
[1745332068950,0.1955,90485.0,90479.0,0.3588]
[1745332069147,0.1955,90494.0,90480.0,0.1931]
[1745332069542,0.1907,90493.0,90480.0,0.1931]
[1745332069738,0.001,90486.0,90480.0,0.1931]
[1745332070151,0.1955,90485.0,90480.0,0.1931]
[1745332070348,0.00016571,90492.0,90480.0,0.1931]
[1745332070543,0.1853,90485.0,90480.0,0.1951]
[1745332071158,0.1853,90485.0,90480.0,0.002]
[1745332071647,0.1853,90485.0,90481.0,0.05884]
[1745332072850,0.1863,90485.0,90481.0,0.06684]
[1745332073347,0.1863,90485.0,90481.0,0.05298885]
[1745332073552,0.1944,90484.0,90481.0,0.05298885]
[1745332073946,0.1815,90483.0,90481.0,0.05298885]
[1745332074248,0.1815,90483.0,90482.0,0.05884]
[1745332074639,0.1815,90483.0,90482.0,0.24384]
[1745332074847,0.1815,90483.0,90482.0,0.21613716]
[1745332075842,0.001,90484.0,90482.0,0.18954383]
[1745332076043,0.001,90483.0,90482.0,0.19554383]
[1745332076840,0.001,90483.0,90482.0,0.23499295]
[1745332077347,0.00192655,90491.0,90482.0,0.34551295]
[1745332077545,0.7335,90508.0,90489.0,0.32091396]
[1745332077749,0.00192643,90490.0,90489.0,0.32091396]
[1745332077950,1e-08,90496.0,90489.0,0.31991396]
[1745332078148,0.3727,90508.0,90489.0,0.31991396]
[1745332078346,0.7335,90508.0,90489.0,0.31991396]
[1745332078749,0.001,90492.0,90489.0,0.31791396]
[1745332079455,0.1927,90495.0,90489.0,0.31291396]
[1745332079653,0.3618,90508.0,90490.0,0.4114]
[1745332079850,0.5487,90508.0,90498.0,0.16991169]
[1745332080045,0.5487,90508.0,90499.0,0.1871]
[1745332080251,0.5487,90508.0,90500.0,0.05884]
[1745332081752,0.55585617,90508.0,90500.0,0.05784]
[1745332082657,0.55685617,90508.0,90500.0,0.06084]
[1745332083548,0.36995617,90508.0,90500.0,0.02095699]
[1745332083748,0.3608,90534.0,90506.0,0.33421199]
[1745332083951,0.1923,90533.0,90524.0,0.16991169]
[1745332084153,0.3608,90525.0,90524.0,0.22875169]
[1745332084351,0.3608,90525.0,90524.0,0.05884]
[1745332085355,0.3608,90525.0,90524.0,0.03945549]
[1745332085752,0.3608,90525.0,90524.0,0.04045549]
[1745332085959,0.1923,90533.0,90524.0,0.03545549]
[1745332086152,0.3608,90525.0,90524.0,0.03545549]
[1745332086352,0.1923,90533.0,90524.0,0.03545549]
[1745332086556,0.1923,90533.0,90524.0,0.02845549]
[1745332086755,0.1923,90533.0,90528.0,0.3608]
[1745332086965,0.00843705,90537.0,90528.0,0.3608]
[1745332086966,0.3608,90560.0,90528.0,1.133]
[1745332087157,0.1939,90559.0,90550.0,0.16991169]
[1745332087355,0.3764,90559.0,90551.0,0.22364]
[1745332087560,0.3764,90559.0,90551.0,0.40944]
[1745332087861,0.3608,90552.0,90541.0,0.3608]
[1745332088161,0.5665,90551.0,90546.0,0.00016571]
[1745332088562,0.5665,90551.0,90547.0,0.05884]
[1745332090961,0.5675,90551.0,90547.0,0.05884]
[1745332091858,0.5675,90551.0,90547.0,0.03226252]
[1745332092065,0.5685,90551.0,90547.0,0.03226252]
[1745332092562,0.5685,90551.0,90548.0,0.1936]
[1745332092959,0.5685,90551.0,90547.0,0.03226252]
[1745332093573,0.5685,90551.0,90547.0,0.01288397]
[1745332093866,0.5665,90551.0,90548.0,0.05872]
[1745332094159,0.5665,90551.0,90540.0,0.16911941]
[1745332094359,0.3608,90544.0,90541.0,0.05172]
[1745332094556,0.3919,90543.0,90541.0,0.05172]
[1745332094759,0.3919,90543.0,90520.0,0.16991169]
[1745332094957,0.3608,90529.0,90521.0,0.25232]
[1745332095262,0.392,90528.0,90522.0,0.00016571]
[1745332095464,0.392,90528.0,90527.0,0.3608]
[1745332096665,0.3608,90555.0,90527.0,0.779984]
[1745332096871,0.1988,90543.0,90536.0,0.3608]
[1745332097059,0.1988,90543.0,90537.0,0.3629]
[1745332097361,0.1932,90542.0,90537.0,0.1981]
[1745332097754,0.1932,90542.0,90536.0,0.3608]
[1745332097755,0.1988,90541.0,90536.0,0.3608]
[1745332097962,0.3898,90541.0,90536.0,0.3668]
[1745332098162,0.1924,90540.0,90536.0,0.5588]
[1745332098363,0.1924,90540.0,90536.0,0.51893527]
[1745332098563,0.1823,90539.0,90536.0,0.51893527]
[1745332098866,0.1823,90539.0,90537.0,0.002]
[1745332099173,0.1924,90538.0,90537.0,0.002]
[1745332099660,0.1924,90538.0,90537.0,0.001]
[1745332099859,0.1924,90538.0,90536.0,0.48735895]
[1745332100160,0.1823,90537.0,90536.0,0.48735895]
[1745332100364,0.1823,90537.0,90536.0,0.192]
[1745332100960,0.1823,90537.0,90536.0,0.16431654]
[1745332101155,0.1823,90537.0,90536.0,0.16731654]
[1745332101769,0.1823,90537.0,90536.0,0.14793785]
[1745332102265,0.1823,90537.0,90536.0,0.003]
[1745332102457,0.1833,90537.0,90536.0,0.006]
[1745332102657,0.1833,90537.0,90536.0,0.06468]
[1745332103962,0.1833,90537.0,90536.0,0.006]
[1745332104263,0.1833,90537.0,90536.0,0.04883755]
[1745332104859,0.1833,90537.0,90536.0,0.03142569]
[1745332105968,0.1833,90537.0,90536.0,0.03242569]
[1745332106361,0.1833,90537.0,90536.0,0.005]
[1745332106672,0.1833,90537.0,90536.0,0.06368]
[1745332107767,0.1833,90537.0,90536.0,0.03710261]
[1745332107967,0.1833,90537.0,90536.0,0.04110261]
[1745332108869,0.1833,90537.0,90536.0,0.04210261]
[1745332109967,0.1833,90537.0,90536.0,0.03510261]
[1745332110168,0.1833,90537.0,90536.0,0.0157232]
[1745332110471,0.1833,90537.0,90536.0,0.05868]
[1745332110661,0.1833,90537.0,90536.0,0.06068]
[1745332110866,0.1833,90537.0,90536.0,0.02081375]
[1745332111371,0.5441,90537.0,90536.0,0.002]
[1745332111668,0.904552,90537.0,90519.0,0.05868]
[1745332111974,0.3608,90523.0,90519.0,0.05868]
[1745332112767,0.1912,90536.0,90519.0,0.05868]
[1745332112970,0.3608,90523.0,90519.0,0.05868]
[1745332113974,0.3668,90523.0,90519.0,0.05868]
[1745332114575,0.3816,90522.0,90520.0,0.05868]
[1745332115064,0.1957,90521.0,90520.0,0.05868]
[1745332115475,0.5773,90521.0,90520.0,0.05868]
[1745332115867,0.5773,90521.0,90520.0,0.03209499]
[1745332116778,0.5773,90521.0,90520.0,0.05872]
[1745332117167,0.5803,90521.0,90514.0,0.18808891]
[1745332117373,0.3608,90515.0,90503.0,0.05872]
[1745332117576,0.3608,90507.0,90501.0,0.05172]
[1745332117767,0.3761,90506.0,90501.0,0.05172]
[1745332117967,0.3608,90502.0,90501.0,0.05172]
[1745332118574,0.3608,90502.0,90501.0,0.03233029]
[1745332119474,0.5576,90506.0,90501.0,0.03233029]
[1745332120181,0.5576,90506.0,90502.0,0.1814]
[1745332120386,0.5576,90506.0,90502.0,0.1804]
[1745332121286,0.5596,90506.0,90502.0,0.1804]
[1745332121674,0.5596,90506.0,90501.0,0.03233029]
[1745332122878,0.5596,90506.0,90502.0,0.0586]
[1745332123289,0.5596,90506.0,90502.0,0.03090204]
[1745332123794,0.5596,90506.0,90502.0,0.00431154]
[1745332124287,0.5586,90506.0,90502.0,0.00331154]
[1745332124689,0.5586,90506.0,90502.0,0.0586]
[1745332125395,0.5586,90506.0,90502.0,0.0516]
[1745332126990,0.55667374,90506.0,90502.0,0.0516]
[1745332127593,0.362,90506.0,90503.0,0.22901076]
[1745332128003,0.001,90506.0,90504.0,0.1647]
[1745332128199,0.001,90506.0,90505.0,0.0586]
[1745332128396,0.00016571,90511.0,90505.0,0.0586]
[1745332128795,0.00016571,90511.0,90505.0,0.01872236]
[1745332129003,0.3608,90507.0,90504.0,0.0586]
[1745332129301,0.3608,90505.0,90504.0,0.0586]
[1745332129698,0.7369,90505.0,90504.0,0.03169768]
[1745332130101,0.9272,90505.0,90504.0,0.03169768]
[1745332130307,0.9272,90505.0,90504.0,0.0586]
[1745332131606,0.9272,90505.0,90501.0,0.0586]
[1745332131797,0.9282,90505.0,90501.0,0.03201039]
[1745332132201,0.92627376,90505.0,90501.0,0.03201039]
[1745332133202,0.92627376,90505.0,90501.0,0.02501039]
[1745332134806,0.92627376,90505.0,90501.0,0.0586]
[1745332135407,0.92627376,90505.0,90501.0,0.0447507]
[1745332135806,0.00192627,90504.0,90501.0,0.0447507]
[1745332136197,0.3882,90503.0,90501.0,0.0447507]
[1745332137109,0.00192627,90504.0,90502.0,0.17171264]
[1745332137304,0.00192627,90504.0,90503.0,0.1647]
[1745332137605,0.00192627,90504.0,90503.0,0.124822]
[1745332137811,0.00292627,90504.0,90503.0,0.124822]
[1745332138199,0.00292627,90504.0,90503.0,0.192]
[1745332138609,0.00292627,90504.0,90503.0,0.2506]
[1745332138802,0.001,90504.0,90503.0,0.2506]
[1745332139006,0.00292619,90504.0,90503.0,0.2506]
[1745332139204,0.00292619,90504.0,90503.0,0.0586]
[1745332139399,0.00192619,90504.0,90503.0,0.0586]
[1745332139601,0.00292619,90504.0,90503.0,0.0586]
[1745332139808,0.001,90504.0,90503.0,0.0320141]
[1745332140310,0.001,90504.0,90503.0,0.2240141]
[1745332140503,0.001,90504.0,90503.0,0.2506]
[1745332140708,0.00292619,90504.0,90503.0,0.2506]
[1745332140908,0.00292619,90504.0,90503.0,0.2436]
[1745332141107,0.00292619,90504.0,90503.0,0.0586]
[1745332141505,0.001,90504.0,90503.0,0.0586]
[1745332141809,0.00192619,90504.0,90503.0,0.0586]
[1745332142113,0.00292619,90504.0,90503.0,0.0586]
[1745332142706,0.00292619,90504.0,90503.0,0.5608]
[1745332143012,0.00292619,90504.0,90503.0,0.246]
[1745332143200,0.00292619,90504.0,90503.0,0.0586]
[1745332144506,0.00292619,90504.0,90503.0,0.01871717]
[1745332145117,0.00292619,90504.0,90503.0,0.03921238]
[1745332145909,0.00192619,90504.0,90503.0,0.03921238]
[1745332146215,0.00292619,90504.0,90503.0,0.02536402]
[1745332147817,0.00292619,90504.0,90503.0,0.0586]
[1745332148516,0.00292619,90504.0,90503.0,0.0516]
[1745332148820,0.3608,90538.0,90503.0,0.82349199]
[1745332149118,0.3632,90528.0,90520.0,0.16991169]
[1745332149311,0.3632,90528.0,90521.0,0.2484]
[1745332149713,0.3632,90528.0,90521.0,0.0586]
[1745332151409,0.3642,90528.0,90521.0,0.0586]
[1745332151611,0.3642,90528.0,90521.0,0.03120926]
[1745332151815,0.3642,90528.0,90521.0,0.00351762]
[1745332152019,0.3632,90528.0,90521.0,0.00351762]
[1745332152217,0.5582,90528.0,90521.0,0.00351762]
[1745332152514,0.3608,90527.0,90519.0,0.05848]
[1745332152911,0.566,90526.0,90521.0,0.001]
[1745332153113,0.758,90526.0,90521.0,0.001]
[1745332153713,0.00192597,90525.0,90519.0,0.04009418]
[1745332154114,0.3821,90524.0,90519.0,0.04009418]
[1745332154320,0.3821,90524.0,90515.0,0.00016571]
[1745332154321,0.3821,90524.0,90516.0,0.05848]
[1745332154515,0.3608,90517.0,90516.0,0.05848]
[1745332155114,0.3608,90517.0,90515.0,0.00016571]
[1745332155414,0.3821,90516.0,90515.0,0.05848]
[1745332155921,0.3821,90516.0,90515.0,0.031891]
[1745332156323,0.3821,90516.0,90515.0,0.024891]
[1745332156518,0.3821,90516.0,90515.0,0.01104242]
[1745332156717,0.3831,90516.0,90515.0,0.01104242]
[1745332157909,0.49358,90516.0,90506.0,0.00016571]
[1745332158213,0.49358,90516.0,90507.0,0.05848]
[1745332158214,0.5751,90516.0,90507.0,0.05848]
[1745332158417,0.3608,90508.0,90507.0,0.0584001]
[1745332158821,0.3608,90508.0,90507.0,0.03070238]
[1745332159910,0.36272622,90508.0,90507.0,0.03070238]
[1745332160215,0.36372622,90508.0,90507.0,0.03070238]
[1745332161311,0.36372622,90508.0,90506.0,0.05848]
[1745332161516,0.5706,90507.0,90505.0,0.05848]
[1745332162119,0.5706,90507.0,90490.0,0.16991169]
[1745332162120,0.5706,90507.0,90504.0,0.03909004]
[1745332162420,0.3608,90505.0,90504.0,0.03909004]
[1745332162721,0.00016571,90515.0,90505.0,0.11049199]
[1745332162921,0.3608,90528.0,90514.0,0.3608]
[1745332163124,0.3608,90528.0,90515.0,0.3231]
[1745332163422,0.3608,90528.0,90515.0,0.3221]
[1745332163626,0.1875,90527.0,90515.0,0.3221]
[1745332163928,0.003,90524.0,90516.0,0.03189526]
[1745332164118,0.3608,90517.0,90516.0,0.02489526]
[1745332164320,0.3608,90517.0,90516.0,0.22319526]
[1745332164714,0.3608,90517.0,90516.0,0.1983]
[1745332164921,0.3608,90517.0,90516.0,0.25678]
[1745332166521,0.001,90517.0,90516.0,0.1983]
[1745332166723,0.001,90517.0,90516.0,0.05848]
[1745332167023,0.3822,90517.0,90516.0,0.04463424]
[1745332167221,0.001,90517.0,90516.0,0.04463424]
[1745332167414,0.001,90517.0,90516.0,0.41873424]
[1745332168021,0.001,90517.0,90516.0,0.23013424]
[1745332168223,0.001,90517.0,90516.0,0.42213424]
[1745332168621,0.001,90517.0,90516.0,0.60773424]
[1745332169520,0.3812,90525.0,90516.0,0.60773424]
[1745332169721,0.001,90517.0,90516.0,0.60773424]
[1745332170117,0.001,90517.0,90516.0,0.41573424]
[1745332170621,0.001,90517.0,90516.0,0.39635109]
[1745332171028,0.3618,90517.0,90516.0,0.39635109]
[1745332171222,0.001,90517.0,90516.0,0.39635109]
[1745332171625,0.3819,90538.0,90516.0,0.52543268]
[1745332171827,0.005,90539.0,90526.0,0.32722137]
[1745332172030,0.005,90539.0,90536.0,0.3598]
[1745332172225,0.005,90539.0,90537.0,0.24228]
[1745332172833,0.005,90539.0,90537.0,0.24128]
[1745332173234,0.005,90539.0,90537.0,0.43328]
[1745332173430,0.3608,90565.0,90538.0,0.110452]
[1745332173632,0.3608,90565.0,90548.0,0.3598]
[1745332173830,0.1897,90558.0,90548.0,0.3598]
[1745332174029,0.3791,90558.0,90548.0,0.3598]
[1745332174830,0.3791,90558.0,90549.0,0.1837]
[1745332175430,0.3791,90558.0,90549.0,0.1827]
[1745332176032,0.3791,90558.0,90550.0,0.1956]
[1745332176429,0.3791,90558.0,90551.0,0.05848]
[1745332176629,0.3608,90557.0,90551.0,0.05848]
[1745332177030,0.5486,90556.0,90551.0,0.04463893]
[1745332177528,0.3689,90556.0,90551.0,0.00477751]
[1745332177723,0.1921,90561.0,90555.0,0.3608]
[1745332177932,0.00016571,90562.0,90556.0,0.1819]
[1745332178332,0.001,90558.0,90556.0,0.15422229]
[1745332178536,0.001,90558.0,90557.0,0.1954]
[1745332178733,0.001,90558.0,90557.0,0.17602564]
[1745332179135,0.001,90558.0,90557.0,0.36802564]
[1745332179332,0.00835462,90559.0,90557.0,0.36802564]
[1745332179533,0.00016571,90562.0,90557.0,0.36802564]
[1745332179937,0.00016571,90562.0,90557.0,0.34145484]
[1745332180333,0.00016571,90562.0,90557.0,0.33645484]
[1745332180638,0.3608,90579.0,90557.0,0.33645484]
[1745332180932,0.01344762,90569.0,90564.0,0.3608]
[1745332181135,0.005,90569.0,90564.0,0.3608]
[1745332181326,0.3608,90568.0,90558.0,0.16991169]
[1745332181529,0.3608,90567.0,90559.0,0.1868]
[1745332181841,0.3712,90568.0,90559.0,0.1868]
[1745332182137,0.19,90566.0,90559.0,0.192]
[1745332182334,0.1812,90565.0,90559.0,0.192]
[1745332182534,0.1812,90565.0,90560.0,0.1868]
[1745332183033,0.005,90569.0,90560.0,0.1868]
[1745332183034,0.19,90568.0,90564.0,0.3608]
[1745332183240,0.3608,90590.0,90565.0,0.1802]
[1745332183435,0.196,90587.0,90580.0,0.16991169]
[1745332183631,0.196,90587.0,90573.0,0.3608]
[1745332183632,0.196,90587.0,90581.0,0.61602]
[1745332184026,0.1868,90586.0,90581.0,0.61602]
[1745332184232,0.3608,90582.0,90581.0,0.192]
[1745332184630,0.3608,90582.0,90581.0,0.25032]
[1745332184938,0.3608,90582.0,90581.0,0.21047027]
[1745332185142,0.3608,90582.0,90574.0,0.00016562]
[1745332185442,0.3608,90580.0,90575.0,0.05832]
[1745332185636,0.3828,90579.0,90575.0,0.05832]
[1745332186230,0.3828,90579.0,90574.0,0.00016562]
[1745332186540,0.3828,90579.0,90575.0,0.05832]
[1745332187042,0.3828,90579.0,90575.0,0.001]
[1745332187343,0.3828,90579.0,90576.0,0.05832]
[1745332187635,0.3828,90579.0,90576.0,0.03894627]
[1745332187844,0.3828,90579.0,90576.0,0.0123764]
[1745332188041,0.3828,90579.0,90577.0,0.05832]
[1745332188229,0.5748,90579.0,90562.0,0.16392712]
[1745332188433,0.3608,90565.0,90563.0,0.05832]
[1745332188739,0.5755,90564.0,90563.0,0.05832]
[1745332189138,0.93592,90564.0,90558.0,0.05832]
[1745332189335,0.3608,90559.0,90558.0,0.05832]
[1745332189740,0.47122401,90559.0,90558.0,0.05832]
[1745332189941,0.47122401,90559.0,90553.0,0.05832]
[1745332190135,0.3608,90555.0,90553.0,0.05832]
[1745332190336,0.3763,90554.0,90550.0,0.05832]
[1745332190737,0.110432,90553.0,90550.0,0.05832]
[1745332190935,0.110432,90553.0,90550.0,0.01845179]
[1745332191140,0.486736,90552.0,90550.0,0.01845179]
[1745332191343,0.3763,90552.0,90550.0,0.01845179]
[1745332191542,0.110436,90551.0,90550.0,0.01845179]
[1745332191937,0.486736,90551.0,90547.0,0.00513541]
[1745332192139,0.3608,90548.0,90547.0,0.00513541]
[1745332193340,0.3608,90548.0,90547.0,0.00613541]
[1745332194040,0.3608,90548.0,90545.0,0.03676982]
[1745332194235,0.5619,90547.0,90530.0,0.53071169]
[1745332194439,0.3608,90534.0,90531.0,0.05832]
[1745332194633,0.3788,90533.0,90531.0,0.05832]
[1745332195040,0.3788,90533.0,90531.0,0.05132]
[1745332195935,0.3788,90533.0,90531.0,0.00536039]
[1745332196840,0.3788,90533.0,90532.0,0.05832]
[1745332197045,0.3798,90533.0,90532.0,0.05832]
[1745332197934,0.5608,90533.0,90532.0,0.05832]
[1745332198137,0.5608,90533.0,90532.0,0.04447657]
[1745332199045,0.5608,90533.0,90532.0,0.06232]
[1745332200041,0.5598,90533.0,90532.0,0.06032]
[1745332200543,0.5598,90533.0,90532.0,0.03263369]
[1745332201035,0.3798,90533.0,90532.0,0.03463369]
[1745332201743,0.001,90533.0,90532.0,0.03463369]
[1745332202145,0.001,90533.0,90532.0,0.22663369]
[1745332202937,0.001,90533.0,90532.0,0.23908647]
[1745332203846,0.001,90533.0,90532.0,0.21450841]
[1745332204043,0.001,90533.0,90532.0,0.15618841]
[1745332204349,0.361456,90533.0,90519.0,0.05832]
[1745332204645,0.3608,90520.0,90519.0,0.03893857]
[1745332206150,0.35887408,90520.0,90512.0,0.1828]
[1745332206339,0.3865,90519.0,90516.0,0.05832]
[1745332206844,0.3865,90519.0,90510.0,0.59048571]
[1745332207041,0.3865,90519.0,90290.0,3.61100726]
[1745332207042,0.3608,90511.0,90501.0,0.05836]
[1745332207250,0.3608,90502.0,90500.0,0.16991169]
[1745332207443,0.361,90501.0,90498.0,0.1846]
[1745332207644,0.3608,90499.0,90497.0,0.05836]
[1745332207845,0.361,90498.0,90497.0,0.05836]
[1745332208751,0.361,90498.0,90488.0,0.55041169]
[1745332208942,0.361,90498.0,90489.0,0.01847562]
[1745332209145,0.3608,90490.0,90489.0,0.01847562]
[1745332209345,0.3608,90490.0,90489.0,0.20307562]
[1745332209742,0.3608,90490.0,90489.0,0.1846]
[1745332210345,0.001,90498.0,90489.0,0.7413]
[1745332210544,0.00016571,90507.0,90497.0,0.3538]
[1745332210748,0.00016571,90507.0,90506.0,0.3608]
[1745332210956,0.00016571,90507.0,90506.0,0.3588]
[1745332211153,0.17953974,90517.0,90506.0,0.5508]
[1745332211451,0.3608,90511.0,90506.0,0.192]
[1745332211652,0.1802,90510.0,90506.0,0.192]
[1745332211846,0.1802,90510.0,90506.0,0.16541172]
[1745332212243,0.1802,90510.0,90499.0,0.24432571]
[1745332212542,0.1802,90510.0,90507.0,0.3608]
[1745332212752,0.1802,90510.0,90508.0,0.35661466]
[1745332212941,0.00016571,90517.0,90508.0,0.32792137]
[1745332213144,0.1802,90516.0,90508.0,0.32792137]
[1745332213543,0.00016571,90517.0,90515.0,0.3608]
[1745332213746,0.00016571,90517.0,90516.0,0.1955]
[1745332214255,0.00016571,90517.0,90516.0,0.3875]
[1745332214743,0.00116571,90517.0,90516.0,0.3875]
[1745332214944,0.00116571,90517.0,90516.0,0.34762624]
[1745332215146,0.18686571,90517.0,90516.0,0.15562624]
[1745332215342,0.18686571,90517.0,90507.0,0.3608]
[1745332215343,0.73036571,90517.0,90507.0,0.41904]
[1745332215541,0.36956571,90517.0,90507.0,0.41904]
[1745332215742,0.36956571,90517.0,90507.0,0.58895169]
[1745332216148,0.00016571,90517.0,90515.0,0.3608]
[1745332216350,0.1827,90535.0,90516.0,0.3745]
[1745332216552,0.1912,90538.0,90526.0,0.16991169]
[1745332216751,0.1912,90538.0,90537.0,0.3608]
[1745332217253,0.00192607,90544.0,90537.0,0.3578]
[1745332217445,0.3888,90538.0,90537.0,0.3578]
[1745332217847,0.3972722,90538.0,90537.0,0.3568]
[1745332218348,0.3972722,90538.0,90537.0,0.3558]
[1745332218751,0.3972722,90538.0,90537.0,0.34195776]
[1745332218956,0.3982722,90538.0,90537.0,0.34095776]
[1745332219553,0.00016571,90547.0,90537.0,0.31327328]